fUST/lending_fUST_20250720
["ID","MTS","AMOUNT","RATE_DAILY","PERIOD"]
[373471784,1753018393761,1375.13062786,0.000164,2]
[373471785,1753018393794,3624.86937214,0.000164,2]
[373471786,1753018405184,202.33542456,0.00016338,2]
[373471787,1753018409234,5000.0,0.000164,2]
[373471788,1753018422718,151.35,0.00016252,2]
[373471789,1753018427315,1021.4452033,0.000164,2]
[373471790,1753018427349,3978.5547967,0.000164,2]
[373471791,1753018433554,151.35,0.00022454,30]
[373471792,1753018464827,6021.4452033,0.00015474,2]
[373471793,1753018464857,3978.5547967,0.00015474,2]
[373471794,1753018467085,154.62392441,0.00016313,2]
[373471795,1753018472072,154.62392441,0.00016326,2]
[373471796,1753018473507,221.16243949,0.00015922,2]
[373471797,1753018477081,154.62392441,0.00016338,2]
[373471801,1753018512295,572.50339273,0.00016338,2]
[373471811,1753018611226,4763.90759785,0.00016338,2]
[373471812,1753018611412,55.77924528,0.00016338,2]
[373471814,1753018652545,50210.0,0.00023,30]
[373471815,1753018671251,312.0978916,0.00016338,2]
[373471816,1753018689264,831.44932794,0.00016313,2]
[373471819,1753018901494,3213.1245621,0.00016338,2]
[373471820,1753018913785,-238.18,0.00016404,3]
[373471821,1753018913816,-714.56,0.00016404,3]
[373471822,1753018913845,-191.69491963,0.00016404,2]
[373471823,1753018913875,-1127.0,0.00016411,2]
[373471824,1753018913905,-157.13016074,0.00016411,2]
[373471825,1753018913989,-142.86983926,0.00016411,2]
[373471826,1753018914054,-300.0,0.00016412,2]
[373471827,1753018914084,-300.0,0.00016412,2]
[373471828,1753018914113,-972.0,0.00016412,2]
[373471829,1753018914181,-1856.0,0.00016413,2]
[373471830,1753018914330,-5000.0,0.00016413,2]
[373471831,1753018914601,-5000.0,0.00016413,2]
[373471832,1753018914840,-5000.0,0.00016413,2]
[373471833,1753018915095,-5000.0,0.00016413,2]
[373471834,1753018915377,-5000.0,0.00016413,2]
[373471835,1753018915616,-5000.0,0.00016413,2]
[373471836,1753018915897,-5000.0,0.00016413,2]
[373471837,1753018916158,-5000.0,0.00016413,2]
[373471838,1753018916398,-5000.0,0.00016413,2]
[373471839,1753018916825,-1856.0,0.00016413,2]
[373471840,1753018916850,-1288.0,0.00016413,2]
[373471841,1753018917030,-500.0,0.00016413,2]
[373471842,1753018917061,-500.0,0.00016413,2]
[373471843,1753018917090,-500.0,0.00016413,2]
[373471844,1753018917119,-570.29107013,0.00016413,2]
[373471845,1753018917148,-250.0,0.00016413,2]
[373471846,1753018917245,-359.41785974,0.00016413,2]
[373471847,1753018917324,-140.58214026,0.00016413,2]
[373471848,1753018917354,-500.0,0.00016413,2]
[373471849,1753018917386,-500.0,0.00016413,2]
[373471850,1753018917415,-241.55615309,0.00016413,2]
[373471851,1753018917445,-500.0,0.00016413,2]
[373471852,1753018917479,-500.0,0.00016413,2]
[373471853,1753018917603,-235.7234133,0.00016413,2]
[373471854,1753018917781,-264.2765867,0.00016413,2]
[373471855,1753018917813,-500.0,0.00016413,2]
[373471856,1753018917844,-500.0,0.00016413,2]
[373471857,1753018917875,-500.0,0.00016413,2]
[373471858,1753018917907,-500.0,0.00016413,2]
[373471859,1753018917937,-178.08335743,0.00016413,2]
[373471860,1753018918057,-115.28011174,0.00016413,2]
[373471861,1753018918096,-384.71988826,0.00016413,2]
[373471862,1753018918126,-451.95182886,0.00016413,2]
[373471863,1753018918159,-500.0,0.00016413,2]
[373471864,1753018918187,-503.42071288,0.00016413,2]
[373471865,1753018918217,-500.0,0.00016413,2]
[373471866,1753018918318,-319.81514,0.00016413,2]
[373471867,1753018918356,-178.51825263,0.00016413,2]
[373471868,1753018918387,-500.0,0.00016413,2]
[373471869,1753018918419,-500.0,0.00016413,2]
[373471870,1753018918450,-500.0,0.00016413,2]
[373471871,1753018918481,-500.0,0.00016413,2]
[373471872,1753018918511,-142.96349474,0.00016413,2]
[373471873,1753018918610,-357.03650526,0.00016413,2]
[373471874,1753018918650,-500.0,0.00016413,2]
[373471875,1753018918682,-290.89568103,0.00016413,2]
[373471876,1753018918712,-500.0,0.00016413,2]
[373471877,1753018918743,-500.00000001,0.00016413,2]
[373471878,1753018918820,-1418.20863792,0.00016414,2]
[373471879,1753018918946,-5000.0,0.00016414,2]
[373471880,1753018919174,-5000.0,0.00016414,2]
[373471881,1753018919442,-5000.0,0.00016414,2]
[373471882,1753018919684,-5000.0,0.00016414,2]
[373471883,1753018919943,-5000.0,0.00016414,2]
[373471884,1753018920585,-5000.0,0.00016414,2]
[373471885,1753018920615,-5000.0,0.00016414,2]
[373471886,1753018920899,-5000.0,0.00016414,2]
[373471887,1753018921207,-5000.0,0.00016414,2]
[373471888,1753018921789,-5000.0,0.00016414,2]
[373471889,1753018922177,-5000.0,0.00016414,2]
[373471890,1753018922468,-5000.0,0.00016414,2]
[373471891,1753018922821,-5000.0,0.00016414,2]
[373471892,1753018923130,-5000.0,0.00016414,2]
[373471893,1753018923332,-5000.0,0.00016414,2]
[373471894,1753018923578,-5000.0,0.00016414,2]
[373471895,1753018923842,-5000.0,0.00016414,2]
[373471896,1753018924899,-5000.0,0.00016414,2]
[373471897,1753018925197,-5000.0,0.00016414,2]
[373471898,1753018925498,-5000.0,0.00016414,2]
[373471899,1753018925766,-5000.0,0.00016414,2]
[373471900,1753018926032,-5000.0,0.00016414,2]
[373471901,1753018926320,-5000.0,0.00016414,2]
[373471902,1753018926583,-5000.0,0.00016414,2]
[373471903,1753018926851,-5000.0,0.00016414,2]
[373471904,1753018927120,-5000.0,0.00016414,2]
[373471905,1753018927374,-5000.0,0.00016414,2]
[373471906,1753018927659,-5000.0,0.00016414,2]
[373471907,1753018927972,-5000.0,0.00016414,2]
[373471908,1753018928312,-5000.0,0.00016414,2]
[373471909,1753018928610,-5000.0,0.00016414,2]
[373471910,1753018928887,-5000.0,0.00016414,2]
[373471911,1753018951650,5000.0,0.000164,2]
[373471912,1753018963185,587.54897308,0.00016338,2]
[373471913,1753018963225,139.96918885,0.00016338,2]
[373471914,1753018967642,5000.0,0.000164,2]
[373471915,1753018983551,4860.03081115,0.000164,2]
[373471916,1753018983584,139.96918885,0.000164,2]
[373471918,1753019000541,5000.0,0.000164,2]
[373471919,1753019011624,432.59954594,0.00016338,2]
[373471920,1753019017090,156.97,0.00016234,2]
[373471921,1753019021915,4270.46126521,0.000164,2]
[373471922,1753019021951,729.53873479,0.000164,2]
[373471923,1753019023538,156.97,0.00022203,30]
[373471924,1753019026176,432.9023119,0.00015455,2]
[373471925,1753019037333,5000.0,0.000164,2]
[373471926,1753019049461,202.33542456,0.00016314,2]
[373471928,1753019052956,3635.22352875,0.000164,2]
[373471929,1753019052988,1364.77647125,0.000164,2]
[373471930,1753019068972,5000.0,0.000164,2]
[373471931,1753019075696,175.736523,0.00015922,2]
[373471933,1753019085592,3459.48700575,0.000164,2]
[373471934,1753019100593,-1540.51299425,0.000164,2]
[373471935,1753019101715,150.64208,0.0002208,30]
[373471938,1753019115371,5000.0,0.000164,2]
[373471945,1753019130911,3459.48700575,0.000164,2]
[373471946,1753019130945,1540.51299425,0.000164,2]
[373471947,1753019133722,1257.299546,0.00013699,2]
[373471950,1753019146293,5000.0,0.000164,2]
[373471951,1753019148692,919.0,0.00027397,120]
[373471952,1753019204691,1532.0655432,0.00015553,2]
[373471958,1753019274011,670.12191655,0.0001543,2]
[373471959,1753019274044,71.41850645,0.0001543,2]
[373471962,1753019352026,346.07963676,0.00016338,2]
[373471992,1753019415778,-223.0,0.00016413,2]
[373471993,1753019415811,-300.0,0.00016413,2]
[373471994,1753019415842,-160.0,0.00016414,2]
[373471995,1753019415933,-3634.0,0.00016414,2]
[373471996,1753019416121,-5000.0,0.00016414,2]
[373471997,1753019416456,-2305.34194121,0.00016414,2]
[373471998,1753019416515,-389.31611758,0.00016416,2]
[373471999,1753019416704,-1752.76692382,0.00016416,2]
[373472000,1753019416736,-447.69,0.00016428,3]
[373472001,1753019416767,-223.84,0.00016428,3]
[373472002,1753019416868,-151.40615236,0.00016428,3]
[373472003,1753019416961,-520.16384764,0.00016428,3]
[373472004,1753019416994,-500.0,0.00016437,2]
[373472005,1753019417030,-500.0,0.00016437,2]
[373472006,1753019417063,-500.0,0.00016437,2]
[373472007,1753019417099,-459.67230472,0.00016437,2]
[373472008,1753019417188,-40.32769528,0.00016437,2]
[373472009,1753019417232,-500.0,0.00016437,2]
[373472010,1753019417266,-500.0,0.00016437,2]
[373472011,1753019417299,-500.0,0.00016437,2]
[373472012,1753019417331,-500.0,0.00016437,2]
[373472013,1753019417365,-500.0,0.00016437,2]
[373472014,1753019417643,-500.0,0.00016437,2]
[373472015,1753019417675,-500.0,0.00016437,2]
[373472016,1753019417707,-500.0,0.00016437,2]
[373472017,1753019417738,-500.0,0.00016437,2]
[373472018,1753019417771,-500.0,0.00016437,2]
[373472019,1753019417906,-500.0,0.00016437,2]
[373472020,1753019417939,-221.45711561,0.00016437,2]
[373472021,1753019418182,-500.0,0.00016437,2]
[373472022,1753019418214,-500.0,0.00016437,2]
[373472023,1753019418247,-603.99309361,0.00016437,2]
[373472024,1753019418366,-500.0,0.00016437,2]
[373472025,1753019418398,-500.0,0.00016437,2]
[373472026,1753019418435,-500.0,0.00016437,2]
[373472027,1753019418469,-500.0,0.00016437,2]
[373472028,1753019418502,-500.0,0.00016437,2]
[373472029,1753019418622,-500.0,0.00016437,2]
[373472030,1753019418655,-500.0,0.00016437,2]
[373472031,1753019418688,-500.0,0.00016437,2]
[373472032,1753019418720,-500.0,0.00016437,2]
[373472033,1753019418753,-466.20701381,0.00016438,2]
[373472034,1753019418900,-460.0,0.00016438,2]
[373472035,1753019418933,-349.00569166,0.00016438,2]
[373472036,1753019418964,-172.80804998,0.00016438,2]
[373472037,1753019418995,-460.0,0.00016438,2]
[373472038,1753019419026,-461.79428853,0.00016438,2]
[373472039,1753019419056,-460.0,0.00016438,2]
[373472041,1753019419205,-460.0,0.00016438,2]
[373472042,1753019419236,-460.0,0.00016438,2]
[373472043,1753019419268,-460.0,0.00016438,2]
[373472044,1753019419300,-460.0,0.00016438,2]
[373472045,1753019419463,-460.0,0.00016438,2]
[373472046,1753019419683,-469.27026271,0.00016438,2]
[373472047,1753019419713,-461.34760841,0.00016438,2]
[373472048,1753019419743,-460.0,0.00016438,2]
[373472049,1753019419774,-460.0,0.00016438,2]
[373472050,1753019419804,-460.0,0.00016438,2]
[373472051,1753019419973,-1015.13477127,0.00016438,2]
[373472052,1753019420005,-460.0,0.00016438,2]
[373472053,1753019420034,-460.0,0.00016438,2]
[373472054,1753019420064,-463.67198864,0.00016438,2]
[373472055,1753019420229,-460.0,0.00016438,2]
[373472056,1753019420259,-460.0,0.00016438,2]
[373472057,1753019420291,-460.0,0.00016438,2]
[373472058,1753019420322,-460.0,0.00016438,2]
[373472059,1753019420355,-401.04470229,0.00016438,2]
[373472060,1753019420384,-57.91059542,0.00016438,2]
[373472061,1753019420567,-402.08940458,0.00016438,2]
[373472062,1753019420597,-460.0,0.00016438,2]
[373472063,1753019420628,-460.0,0.00016438,2]
[373472064,1753019420658,-460.0,0.00016438,2]
[373472065,1753019420688,-583.45920605,0.00016438,2]
[373472066,1753019420851,-168.64902442,0.00016438,2]
[373472067,1753019420871,-291.35097558,0.00016438,2]
[373472068,1753019420881,-168.64902442,0.00016438,2]
[373472069,1753019420915,-291.35097558,0.00016438,2]
[373472070,1753019420944,-460.0,0.00016438,2]
[373472071,1753019420972,-460.0,0.00016438,2]
[373472072,1753019421002,-460.0,0.00016438,2]
[373472073,1753019421031,-460.0,0.00016438,2]
[373472074,1753019421060,-277.29804884,0.00016438,2]
[373472075,1753019421190,-182.70195116,0.00016438,2]
[373472076,1753019421219,-529.90452754,0.00016438,2]
[373472077,1753019421249,-461.2147077,0.00016438,2]
[373472078,1753019421279,-460.0,0.00016438,2]
[373472079,1753019421309,-461.50260577,0.00016438,2]
[373472080,1753019421338,-349.35241566,0.00016438,2]
[373472081,1753019421498,-110.64758434,0.00016438,2]
[373472082,1753019421509,-123.45920605,0.00016438,2]
[373472083,1753019421546,-336.54079395,0.00016438,2]
[373472084,1753019421575,-460.0,0.00016438,2]
[373472085,1753019421607,-460.0,0.00016438,2]
[373472086,1753019421636,-460.0,0.00016438,2]
[373472087,1753019421665,-460.0,0.00016438,2]
[373472088,1753019421695,-186.9184121,0.00016438,2]
[373472089,1753019422076,-273.0815879,0.00016438,2]
[373472090,1753019422086,-2.71731347,0.00016438,2]
[373472091,1753019422101,-457.28268653,0.00016438,2]
[373472092,1753019422110,-2.71731347,0.00016438,2]
[373472093,1753019422142,-457.28268653,0.00016438,2]
[373472094,1753019422172,-460.0,0.00016438,2]
[373472095,1753019422201,-603.87961973,0.00016438,2]
[373472096,1753019422229,-460.0,0.00016438,2]
[373472097,1753019422258,-460.0,0.00016438,2]
[373472098,1753019422423,-460.0,0.00016438,2]
[373472099,1753019422447,-460.0,0.00016438,2]
[373472100,1753019422462,-460.0,0.00016438,2]
[373472101,1753019422477,-1.68123563,0.00016438,2]
[373472102,1753019422487,-115.99415185,0.00016438,2]
[373472116,1753019432128,-327.1861059,0.00016438,2]
[373472121,1753019438061,-16.81974225,0.00016438,2]
[373472123,1753019438071,-460.0,0.00016438,2]
[373472124,1753019438080,-460.0,0.00016438,2]
[373472125,1753019438090,-460.0,0.00016438,2]
[373472126,1753019438099,-460.0,0.00016438,2]
[373472127,1753019438108,-460.0,0.00016438,2]
[373472128,1753019438117,-460.0,0.00016438,2]
[373472129,1753019438126,-460.0,0.00016438,2]
[373472130,1753019438135,-234.71671928,0.00016438,2]
[373472131,1753019438144,-478.65322308,0.00016438,2]
[373472132,1753019438154,-460.0,0.00016438,2]
[373472133,1753019438163,-460.0,0.00016438,2]
[373472134,1753019438173,-460.0,0.00016438,2]
[373472135,1753019438182,-460.0,0.00016438,2]
[373472136,1753019438191,-460.0,0.00016438,2]
[373472137,1753019438200,-460.0,0.00016438,2]
[373472138,1753019438210,-460.0,0.00016438,2]
[373472139,1753019438219,-460.0,0.00016438,2]
[373472140,1753019438228,-460.0,0.00016438,2]
[373472141,1753019438237,-460.0,0.00016438,2]
[373472142,1753019438247,-460.0,0.00016438,2]
[373472143,1753019438256,-460.0,0.00016438,2]
[373472144,1753019438265,-460.0,0.00016438,2]
[373472145,1753019438274,-461.06716119,0.00016438,2]
[373472146,1753019438283,-373.88294649,0.00016438,2]
[373472147,1753019438292,-460.0,0.00016438,2]
[373472148,1753019438302,-460.0,0.00016438,2]
[373472149,1753019438311,-460.0,0.00016438,2]
[373472150,1753019438320,-460.0,0.00016438,2]
[373472151,1753019438330,-460.0,0.00016438,2]
[373472153,1753019438339,-460.0,0.00016438,2]
[373472154,1753019438348,-463.41410887,0.00016438,2]
[373472156,1753019438357,-460.0,0.00016438,2]
[373472158,1753019438367,-462.52444877,0.00016438,2]
[373472159,1753019438377,-460.0,0.00016438,2]
[373472161,1753019438386,-460.0,0.00016438,2]
[373472162,1753019438395,-460.0,0.00016438,2]
[373472163,1753019438404,-460.0,0.00016438,2]
[373472165,1753019438413,-460.0,0.00016438,2]
[373472167,1753019438422,-460.0,0.00016438,2]
[373472169,1753019438436,-460.0,0.00016438,2]
[373472170,1753019438445,-460.0,0.00016438,2]
[373472171,1753019438455,-460.0,0.00016438,2]
[373472173,1753019438465,-460.0,0.00016438,2]
[373472174,1753019438475,-460.0,0.00016438,2]
[373472175,1753019438485,-460.0,0.00016438,2]
[373472176,1753019438495,-460.0,0.00016438,2]
[373472177,1753019438506,-460.0,0.00016438,2]
[373472178,1753019438515,-460.0,0.00016438,2]
[373472179,1753019438525,-460.0,0.00016438,2]
[373472181,1753019438534,-462.10525546,0.00016438,2]
[373472182,1753019438543,-460.0,0.00016438,2]
[373472183,1753019438553,-460.0,0.00016438,2]
[373472184,1753019438563,-460.0,0.00016438,2]
[373472185,1753019438572,-460.0,0.00016438,2]
[373472186,1753019438581,-460.0,0.00016438,2]
[373472187,1753019438590,-460.0,0.00016438,2]
[373472188,1753019438600,-460.0,0.00016438,2]
[373472189,1753019438609,-467.35119745,0.00016438,2]
[373472190,1753019438619,-460.0,0.00016438,2]
[373472191,1753019438629,-460.0,0.00016438,2]
[373472192,1753019438638,-460.0,0.00016438,2]
[373472193,1753019438648,-460.0,0.00016438,2]
[373472194,1753019438657,-460.0,0.00016438,2]
[373472195,1753019438667,-460.0,0.00016438,2]
[373472196,1753019438676,-460.0,0.00016438,2]
[373472197,1753019438686,-580.20017206,0.00016438,2]
[373472198,1753019438696,-460.0,0.00016438,2]
[373472199,1753019438705,-460.0,0.00016438,2]
[373472200,1753019438715,-460.0,0.00016438,2]
[373472201,1753019438724,-460.0,0.00016438,2]
[373472202,1753019438733,-460.0,0.00016438,2]
[373472203,1753019438743,-460.0,0.00016438,2]
[373472204,1753019438752,-460.0,0.00016438,2]
[373472205,1753019438762,-460.0,0.00016438,2]
[373472206,1753019438772,-460.0,0.00016438,2]
[373472207,1753019438782,-460.0,0.00016438,2]
[373472208,1753019438791,-460.0,0.00016438,2]
[373472209,1753019438803,-460.0,0.00016438,2]
[373472210,1753019438812,-460.0,0.00016438,2]
[373472211,1753019438822,-460.0,0.00016438,2]
[373472212,1753019438833,-460.0,0.00016438,2]
[373472213,1753019438843,-460.0,0.00016438,2]
[373472214,1753019438852,-244.79522955,0.00016438,2]
[373472215,1753019438861,-460.0,0.00016438,2]
[373472216,1753019438871,-413.5416707,0.00016438,2]
[373472217,1753019438881,-460.0,0.00016438,2]
[373472218,1753019438892,-460.0,0.00016438,2]
[373472219,1753019438902,-460.0,0.00016438,2]
[373472220,1753019438911,-460.0,0.00016438,2]
[373472221,1753019438921,-460.0,0.00016438,2]
[373472222,1753019438931,-460.0,0.00016438,2]
[373472223,1753019438941,-460.0,0.00016438,2]
[373472224,1753019438951,-460.0,0.00016438,2]
[373472225,1753019438961,-460.0,0.00016438,2]
[373472226,1753019438974,-460.0,0.00016438,2]
[373472227,1753019438983,-460.0,0.00016438,2]
[373472228,1753019438992,-460.0,0.00016438,2]
[373472229,1753019439001,-460.0,0.00016438,2]
[373472230,1753019439011,-461.56600901,0.00016438,2]
[373472231,1753019439020,-460.0,0.00016438,2]
[373472232,1753019439031,-460.0,0.00016438,2]
[373472233,1753019439040,-460.0,0.00016438,2]
[373472234,1753019439050,-460.0,0.00016438,2]
[373472235,1753019439061,-461.94666984,0.00016438,2]
[373472236,1753019439071,-460.0,0.00016438,2]
[373472237,1753019439080,-460.0,0.00016438,2]
[373472238,1753019439091,-460.0,0.00016438,2]
[373472239,1753019439100,-460.0,0.00016438,2]
[373472240,1753019439111,-460.0,0.00016438,2]
[373472241,1753019439120,-460.0,0.00016438,2]
[373472242,1753019439129,-460.0,0.00016438,2]
[373472243,1753019439139,-463.32014927,0.00016438,2]
[373472244,1753019439148,-461.73479707,0.00016438,2]
[373472245,1753019439157,-460.0,0.00016438,2]
[373472246,1753019439167,-460.0,0.00016438,2]
[373472247,1753019439175,-460.0,0.00016438,2]
[373472248,1753019439185,-466.21546086,0.00016438,2]
[373472249,1753019439194,-460.0,0.00016438,2]
[373472250,1753019439203,-460.0,0.00016438,2]
[373472251,1753019439213,-460.0,0.00016438,2]
[373472252,1753019439222,-464.92353618,0.00016438,2]
[373472253,1753019439231,-460.0,0.00016438,2]
[373472254,1753019439241,-460.0,0.00016438,2]
[373472255,1753019439251,-460.0,0.00016438,2]
[373472256,1753019439260,-460.0,0.00016438,2]
[373472257,1753019439270,-460.0,0.00016438,2]
[373472258,1753019439280,-462.67190162,0.00016438,2]
[373472259,1753019439290,-460.0,0.00016438,2]
[373472260,1753019439300,-460.0,0.00016438,2]
[373472261,1753019439312,-371.66227126,0.00016438,2]
[373472262,1753019439321,-460.0,0.00016438,2]
[373472263,1753019439332,-460.0,0.00016438,2]
[373472264,1753019439341,-460.0,0.00016438,2]
[373472265,1753019439351,-460.0,0.00016438,2]
[373472266,1753019439360,-460.0,0.00016438,2]
[373472267,1753019439370,-460.0,0.00016438,2]
[373472268,1753019439379,-460.0,0.00016438,2]
[373472269,1753019439388,-460.0,0.00016438,2]
[373472270,1753019439397,-460.0,0.00016438,2]
[373472271,1753019439407,-460.0,0.00016438,2]
[373472272,1753019439415,-460.0,0.00016438,2]
[373472273,1753019439425,-460.0,0.00016438,2]
[373472274,1753019439439,-460.0,0.00016438,2]
[373472275,1753019439448,-461.61239973,0.00016438,2]
[373472276,1753019439457,-460.0,0.00016438,2]
[373472277,1753019439467,-460.0,0.00016438,2]
[373472278,1753019439478,-460.0,0.00016438,2]
[373472279,1753019439487,-460.0,0.00016438,2]
[373472280,1753019439497,-460.0,0.00016438,2]
[373472281,1753019439507,-460.0,0.00016438,2]
[373472282,1753019439518,-460.0,0.00016438,2]
[373472283,1753019439528,-460.0,0.00016438,2]
[373472284,1753019439537,-460.0,0.00016438,2]
[373472285,1753019439547,-444.14886663,0.00016438,2]
[373472286,1753019439556,-460.0,0.00016438,2]
[373472287,1753019439566,-460.0,0.00016438,2]
[373472288,1753019439576,-460.0,0.00016438,2]
[373472289,1753019439587,-460.0,0.00016438,2]
[373472290,1753019439596,-351.77446615,0.00016438,2]
[373472291,1753019439606,-460.0,0.00016438,2]
[373472292,1753019439615,-463.51996624,0.00016438,2]
[373472293,1753019439627,-460.0,0.00016438,2]
[373472294,1753019439637,-460.0,0.00016438,2]
[373472295,1753019439647,-460.0,0.00016438,2]
[373472296,1753019439656,-340.15799508,0.00016438,2]
[373472297,1753019439665,-460.0,0.00016438,2]
[373472298,1753019439675,-463.0276002,0.00016438,2]
[373472299,1753019439685,-460.0,0.00016438,2]
[373472300,1753019439695,-460.0,0.00016438,2]
[373472301,1753019439704,-460.0,0.00016438,2]
[373472302,1753019439714,-460.0,0.00016438,2]
[373472303,1753019439724,-461.20924833,0.00016438,2]
[373472304,1753019439734,-460.0,0.00016438,2]
[373472305,1753019439743,-500.0,0.00016438,2]
[373472306,1753019439753,-500.0,0.00016438,2]
[373472307,1753019439762,-500.0,0.00016438,2]
[373472308,1753019439771,-462.97303259,0.00016438,2]
[373472309,1753019439780,-420.0,0.00016438,2]
[373472310,1753019439790,-460.0,0.00016438,2]
[373472311,1753019439893,-460.0,0.00016438,2]
[373472312,1753019439903,-460.0,0.00016438,2]
[373472313,1753019439913,-460.0,0.00016438,2]
[373472314,1753019439922,-460.0,0.00016438,2]
[373472315,1753019439931,-460.0,0.00016438,2]
[373472316,1753019439941,-460.0,0.00016438,2]
[373472317,1753019439950,-500.0,0.00016438,2]
[373472318,1753019439959,-500.0,0.00016438,2]
[373472319,1753019439969,-500.0,0.00016438,2]
[373472320,1753019439979,-460.0,0.00016438,2]
[373472321,1753019439988,-500.0,0.00016438,2]
[373472322,1753019439997,-500.0,0.00016438,2]
[373472323,1753019440007,-500.0,0.00016438,2]
[373472324,1753019440017,-500.0,0.00016438,2]
[373472325,1753019440026,-500.0,0.00016438,2]
[373472326,1753019440035,-500.0,0.00016438,2]
[373472327,1753019440045,-460.0,0.00016438,2]
[373472328,1753019440055,-460.0,0.00016438,2]
[373472329,1753019440067,-524.45322043,0.00016438,2]
[373472330,1753019440078,-460.0,0.00016438,2]
[373472331,1753019440087,-460.0,0.00016438,2]
[373472332,1753019440099,-460.0,0.00016438,2]
[373472333,1753019440109,-460.0,0.00016438,2]
[373472334,1753019440121,-460.0,0.00016438,2]
[373472335,1753019440130,-460.0,0.00016438,2]
[373472336,1753019440139,-464.10421493,0.00016438,2]
[373472337,1753019440149,-460.0,0.00016438,2]
[373472338,1753019440158,-460.0,0.00016438,2]
[373472339,1753019440167,-460.0,0.00016438,2]
[373472340,1753019440177,-460.0,0.00016438,2]
[373472341,1753019440186,-460.0,0.00016438,2]
[373472342,1753019440195,-292.9436466,0.00016438,2]
[373472344,1753019440205,-460.0,0.00016438,2]
[373472346,1753019440219,-460.0,0.00016438,2]
[373472348,1753019440228,-460.0,0.00016438,2]
[373472350,1753019440238,-500.0,0.00016438,2]
[373472352,1753019440247,-500.0,0.00016438,2]
[373472354,1753019440257,-460.0,0.00016438,2]
[373472356,1753019440268,-460.0,0.00016438,2]
[373472358,1753019440277,-460.0,0.00016438,2]
[373472360,1753019440287,-460.0,0.00016438,2]
[373472362,1753019440296,-486.24,0.00016438,2]
[373472364,1753019440305,-460.0,0.00016438,2]
[373472366,1753019440316,-557.32636232,0.00016438,2]
[373472368,1753019440328,-460.0,0.00016438,2]
[373472370,1753019440343,-460.0,0.00016438,2]
[373472372,1753019440354,-460.0,0.00016438,2]
[373472374,1753019440363,-281.60881534,0.00016438,2]
[373472376,1753019440373,-1377.94,0.00016438,2]
[373472378,1753019440383,-460.0,0.00016438,2]
[373472380,1753019440392,-460.0,0.00016438,2]
[373472382,1753019440401,-460.0,0.00016438,2]
[373472384,1753019440411,-460.0,0.00016438,2]
[373472386,1753019440421,-460.0,0.00016438,2]
[373472388,1753019440436,-460.0,0.00016438,2]
[373472390,1753019440445,-460.0,0.00016438,2]
[373472392,1753019440454,-460.0,0.00016438,2]
[373472393,1753019440463,-460.0,0.00016438,2]
[373472394,1753019440473,-460.0,0.00016438,2]
[373472395,1753019440482,-460.0,0.00016438,2]
[373472396,1753019440492,-460.0,0.00016438,2]
[373472397,1753019440501,-460.65012483,0.00016438,2]
[373472398,1753019440511,-1244.56,0.00016438,2]
[373472399,1753019440521,-460.0,0.00016438,2]
[373472400,1753019440530,-460.0,0.00016438,2]